[Event "Tata Steel-A 80th"]
[Site "Wijk aan Zee"]
[Date "2018.01.23"]
[Round "9"]
[White "Anand, Viswanathan"]
[Black "Carlsen, Magnus"]
[Result "1/2-1/2"]
[ECO "C95"]
[WhiteElo "2767"]
[BlackElo "2834"]
[Annotator "Fernandez,Daniel Howard"]
[PlyCount "63"]
[EventDate "2018.01.13"]
[EventType "tourn"]
[EventRounds "13"]
[EventCountry "NED"]
[EventCategory "20"]
[SourceTitle "CBM 183"]
[Source "ChessBase"]
[SourceDate "2018.03.14"]
[SourceVersion "1"]
[SourceVersionDate "2018.03.14"]
[SourceQuality "1"]
[TimeControl "40/6000+30:20/3000+30:900+30"]

1. e4 {[%emt 0:00:00]} e5 {[%emt 0:00:58]} 2. Nf3 {[%emt 0:00:00]} Nc6 {[%emt 0:00:06]} 3. Bb5 {[%emt 0:00:00]} a6 {[%emt 0:00:15]} 4. Ba4 {[%emt 0:00:00]} Nf6 {[%emt 0:00:44]} 5. O-O {[%emt 0:00:15]} Be7 {[%emt 0:00:09]} 6. Re1 {[%emt 0:00:07]} b5 {[%emt 0:00:07]} 7. Bb3 {[%emt 0:00:07]} d6 {[%emt 0:00:07]} 8. c3 {[%emt 0:00:31]} O-O {[%emt 0:00:07]} 9. h3 {[%emt 0:00:07]} Nb8 {[%emt 0:00:08] The famously solid Breyer variation! Similar in character to some games of mine that began with the move 1.d4 b5, Black's play in this line is extremely formulaic and rarely deviates from well-established and easily understood plans. A good sign of mastery is to be able to combine elements from different plans as the game dictates.} 10. d4 {[%emt 0:00:23]} (10. d3 $5 {is another move, recently used against Mamedyarov by the young Spanish GM David Anton. The logic is that Black has spent time on ...b8 that he probably wouldn't have done against an earlier d3-system. For instance:} Nbd7 11. Nbd2 Bb7 12. Nf1 Re8 13. Ng3 $132 {and White can contemplate playing with h2-g4 in place of the standard d4, c2 stuff.}) 10... Nbd7 {[%emt 0:00:03]} 11. Nbd2 {[%emt 0:00:09]} Bb7 {[%emt 0:00:11]} (11... c5 {The reason this move order is not played, is that Black would like White to have to play a4 before Black goes c4.} 12. Nf1 Re8 13. Ng3 Bf8 14. Ng5 {The point. Now there is no real choice other than c4, and then Black has to go for tricks.} c4 15. Bc2 exd4 $5 (15... h6 16. Nf3 Bb7 17. d5 g6 18. Be3 {is exactly what Black doesn't want: counterplay is slow to arrive because White doesn't have a4 yet, and White may continue with h2-g4 or d2, etc.}) 16. cxd4 Bb7 17. Bd2 g6 $132 {Black's play now is aimed at making the knight on g5 feel silly. Nevertheless, he doesn't have quite enough pressure on e4 and the feeling is that White must be better somehow, perhaps with a4 under the now-different circumstances.}) 12. Bc2 {[%emt 0:07:27]} Re8 {[%emt 0:00:11]} 13. Nf1 {[%emt 0:01:09]} Bf8 {[%emt 0:00:09]} 14. Ng3 {[%emt 0:00:06]} g6 {[%emt 0:00:08]} 15. a4 {[%emt 0:00:05]} (15. Nh2 {is an interesting creative move:} exd4 16. cxd4 c5 17. d5 $11 {In this kind of position it's hard to know how much weight to give to the opinion of the machine, but Black should not be worse if he follows normal plans (...g7, ...c4, ...c5, possibly ...h5.) See Motycakova,M-Nemcova,K Frydek Mistek 2009.}) (15. b3 $5 {A conceptually challenging line. White wants to get d5 without a4, and not have it punished by ...c6 and detonation of the centre. Black must react carefully, and I am not sure quite how to equalise here, though there is a very interesting piece sacrifice which gives excellent compensation.} Bg7 (15... c5 16. d5 $14) (15... d5 16. Bg5 h6 17. Bh4 $14 {seems to have been pioneered by Mamedyarov and analysed down to a draw, but cloud engines disagree! The consensus will probably change soon...}) 16. d5 Rc8 17. c4 {This was White's point.} c6 18. Be3 (18. dxc6 Rxc6 19. cxb5 axb5 20. Bd3 b4 $11 {Berg,E-Butnorius,A Gibraltar 2008}) 18... Nb6 $1 {Now for concrete reasons this is best.} (18... Qa5 {is suggested by the engine, but following} 19. a3 bxc4 20. bxc4 Nc5 21. Qd2 Qxd2 22. Nxd2 Nfd7 23. Rab1 $14 {the queens have come off and Black is quite passive}) 19. Qe2 $1 {Other moves have been tried, but this is the most convincing for White.} cxd5 20. cxd5 Nbxd5 {If not for this move White would be trivially better.} 21. exd5 Nxd5 22. Rac1 $1 {The only way to take back on e3 with a piece.} (22. Qd2 Nxe3 23. fxe3 e4 24. Nd4 Bxd4 25. exd4 e3 26. Qe2 Qh4 27. Kh2 Qxd4 {is not what White was looking for from the opening}) 22... Nxe3 (22... Nc3 23. Qd2 $14) 23. Qxe3 d5 $44 {Black has good compensation based on the big centre.}) 15... Nb6 $5 {[%emt 0:00:51] Not a move I had seen before, but perhaps it will be seen more in light of the present game.} (15... c5 {This is the main line. White is only given liberty to close the centre after he has played a4. Here I have some quite detailed analysis but suffice it to say in summary that Black faces some slight problems according to the present theory, largely depending on how fast he allows tripling on the a-file.} 16. d5 c4 17. Bg5 $1 {White is trying to cross or delay Black's usual knight redeployment of c5, fd7.} Bg7 $1 (17... h6 $6 {is less strong, and a simple plan for White can be formulated, involving... tripling on the a-file. Far from gaining a tempo, ...h6 in fact loses one. I will give some sample lines.} 18. Be3 Nc5 19. Qd2 h5 20. Ra3 Qc7 (20... Nfd7 21. Rea1 Nb6 {Else just 1a2, c1-a1, etc.} 22. a5 Nba4 {Interesting idea, but probably bad.} 23. Rb1 $1 Bg7 24. Nf1 $14 {The idea is just d1, 1d2, xc4 and there is not a lot Black can do about it.}) 21. Rea1 Rab8 22. Qd1 Bc8 23. axb5 axb5 24. Ra5 Rb7 25. R1a2 Bd7 26. Bg5 Nh7 27. Bd2 Nf6 28. Ng5 Reb8 29. Nf1 {White has gained a marginally more pleasant position and will be able to triple on the a-file if desired, however if Black plays completely precisely the advantage will grow, and as we all know, with almost nothing on the board 0.3 is a draw!}) 18. Qd2 Nc5 19. Ra3 (19. Nh2 Qc7 20. Ng4 Nxg4 21. hxg4 Bc8 22. f3 Bd7 $11) 19... Qc7 20. Rea1 Reb8 21. Qc1 Nfd7 {Black is just about in time, for instance:} 22. R1a2 Nd3 $132) (15... Bg7 $5 {is an interesting attempt to dodge the main line - Black is fine to play with ...c6 in place of ...c5, and keep the position compact and solid in a Philidor-like way.} 16. Bd3 {Otherwise Black gets ...c5, free of the problems outlined above.} c6 17. Be3 (17. Bg5 {encourages Black's concept:} Nf8 18. Qd2 Ne6 19. Be3 Nd7 $11 {Black is fine as in Hou,Y-Sasikiran,K New Delhi 2011.}) 17... Qc7 $132 {Black is playing for ...d5 and whether White has an edge depends heavily on whether he can sufficiently discourage this move in the coming phase. One motif to pay attention to is the dark-square complex. Anand has been on the White side of this: Anand,V-Baramidze,D Baden-Baden 2015}) 16. axb5 {[%emt 0:06:22]} (16. a5 Nbd7 17. b4 $5 {Caruana,F-Roiz,M Bilbao 2014 , An audacious concept . White is trying to play d5, lock down the centre as well as the queenside and only subsequently (and extremely slowly) make progress with the kingside attack. The idea could, however, have come slightly unstuck against the principled} exd4 18. cxd4 c5 19. bxc5 dxc5 20. d5 c4 $132) (16. b3 $5 {is possibly more ambitious than the text - White wants d3, c4, d5.} bxa4 {may be the best way to counter this:} 17. bxa4 a5 18. Bd3 Qc8 $132 {Adams,M-Tan,J Bournemouth 2016, Black has reasonable play according to current knowledge, but Black's position looks slightly looser than usual, so there may be an incisive way for White to get an edge.}) 16... axb5 {[%emt 0:00:04]} 17. Bg5 {[%emt 0:00:13]} Bg7 {[%emt 0:06:43]} 18. Bd3 {[%emt 0:05:49]} Rxa1 {[%emt 0:06:36]} 19. Qxa1 {[%emt 0:00:16]} c6 {[%emt 0:00:49]} 20. Be3 {[%emt 0:02:51]} (20. Qc1 {followed by h6 is the engine idea, but Black is solid in any case.}) 20... Qc7 {[%emt 0:07:19]} 21. dxe5 {[%emt 0:01:00]} dxe5 {[%emt 0:00:03]} 22. Qc1 {[%emt 0:00:52]} Bc8 {[%emt 0:05:35]} 23. Qc2 {[%emt 0:01:39] The last two moves do not create a great impression, but White has a very wide margin of error in such positions.} Nfd7 {[%emt 0:05:08]} 24. c4 {[%emt 0:05:31] This move looks like White has reconciled himself to offering a draw soon.} Nxc4 {[%emt 0:01:03]} 25. Bxc4 {[%emt 0:00:13]} bxc4 {[%emt 0:00:05]} 26. Qxc4 {[%emt 0:00:10]} Nf8 {[%emt 0:01:19]} 27. Rc1 {[%emt 0:00:30]} Bb7 {[%emt 0:04:33]} (27... Rd8 $5 {is a nice wrinkle: after} 28. Qxc6 Rd1+ 29. Kh2 Rxc1 30. Qxc1 Qxc1 31. Bxc1 Ne6 $36 {Black has full compensation for the pawn despite the reduced material and his bishop pair means his game is more pleasant.}) 28. Nf1 {[%emt 0:04:57]} Ne6 {[%emt 0:00:17]} 29. N1d2 {[%emt 0:00:12]} Qa5 $146 {[%emt 0:10:37]} ({RR} 29... Bf8) 30. Ng5 {[%emt 0:16:57]} Nxg5 {[%emt 0:01:18]} 31. Bxg5 {[%emt 0:00:11]} Bf8 {[%emt 0:08:28]} 32. Be3 {[%emt 0:05:44] With a draw offer which was accepted.} (32. Nb3 Qb5 33. Qc3 {was maybe worth considering, as on strategic purity White is still marginally ahead. Definitely below super-GM level there is a strong chance that White will consolidate a dark-square bind, e.g. e3-c5, d2, b4, f3, h2.}) 1/2-1/2

[Event "Tata Steel-A 80th"]
[Site "Wijk aan Zee"]
[Date "2018.01.27"]
[Round "12"]
[White "Carlsen, Magnus"]
[Black "Matlakov, Maxim"]
[Result "1-0"]
[ECO "B48"]
[WhiteElo "2834"]
[BlackElo "2718"]
[Annotator "Fernandez,Daniel Howard"]
[PlyCount "113"]
[EventDate "2018.01.13"]
[EventType "tourn"]
[EventRounds "13"]
[EventCountry "NED"]
[EventCategory "20"]
[SourceTitle "CBM 183"]
[Source "ChessBase"]
[SourceDate "2018.03.14"]
[SourceVersion "1"]
[SourceVersionDate "2018.03.14"]
[SourceQuality "1"]
[TimeControl "40/6000+30:20/3000+30:900+30"]

1. e4 {[%emt 0:00:00]} c5 {[%emt 0:00:06]} 2. Nf3 {[%emt 0:01:09]} e6 {[%emt 0:00:12]} 3. d4 {[%emt 0:02:08]} cxd4 {[%emt 0:00:17]} 4. Nxd4 {[%emt 0:00:02]} Nc6 {[%emt 0:00:10]} 5. Nc3 {[%emt 0:00:12]} Qc7 {[%emt 0:00:31] Another pull-no-punches opening choice from Matlakov, who in his Black games against the other 2 world champions in this event (yep, quite a tough draw!) chose innovative systems in the Italian and Ruy Lopez involving knights moving to the edge. Maybe this is something of a habit for him, as in this game the c6-knight soon makes its way to a5...} 6. Be3 {[%emt 0:01:25]} a6 {[%emt 0:00:30]} (6... Nf6 7. f4 Bb4 $5 {is an interesting attempt to make do without ...a6 for at least a few moves:} 8. Ndb5 Qa5 9. e5 Nd5 10. Bd2 Nxc3 11. Bxc3 O-O 12. Qd2 a6 (12... f6 $5 $132) 13. Bxb4 Qxb4 14. Qxb4 Nxb4 15. Nd4 $132 {1/2-1/2 (15) Motylev,A (2656)-Svidler,P (2751) Tallinn 2016}) 7. Qd2 {[%emt 0:01:04]} Nf6 {[%emt 0:00:53]} 8. f4 {[%emt 0:00:24]} (8. O-O-O Be7 (8... Bb4 9. f3 {is the absolute main line:} Ne5 (9... Na5 {is also a thing here, but White must be slightly better in the ending after a3}) 10. Nb3 b5 (10... d6 11. Bd4 $16 {was the unfortunate opening outcome (for Black) of one game from the 2016 British Championships}) 11. Qf2 $5 {Main is 11.e1 but this is an interesting new idea.} Be7 $6 12. g4 d6 13. Rg1 Rb8 14. g5 $14 {Dominguez Perez,L-Vachier Lagrave,M Berlin 2015}) 9. f3 h5 10. Nxc6 bxc6 11. Bf4 e5 12. Bg5 a5 13. Bc4 a4 14. a3 d6 15. f4 O-O 16. Rhf1 Bg4 17. Rde1 Rfd8 18. Qe3 Rab8 19. fxe5 dxe5 20. Bxf6 Bxf6 21. h3 Rd4 22. hxg4 Rxc4 23. gxh5 Be7 24. Rf3 Rd4 25. Nd1 Qb6 26. h6 Qd8 27. Rg3 g6 28. Rf1 Rb7 29. Nf2 Bh4 30. Rg4 Bxf2 31. Qxf2 Rbd7 32. Qf3 Kh7 33. Kb1 Qe7 34. Rg3 Qh4 35. Rg4 Qe7 36. Rg3 Qd6 37. Rc1 Rd1 {Grischuk,A (2783)-Cori Tello,J (2641) Tbilisi 2017 ½-½}) 8... Bb4 {[%emt 0:02:08]} 9. Bd3 {[%emt 0:00:41]} Na5 {[%emt 0:00:36]} (9... Ne7 $5 {tries to play ...d5 under favourable circumstances, but just ends up looking slow after the same move} 10. a3 $14) 10. a3 {[%emt 0:00:31]} Bxc3 {[%emt 0:00:32]} 11. Qxc3 {[%emt 0:00:02]} Qxc3+ {[%emt 0:00:18]} 12. bxc3 {[%emt 0:00:04]} d5 {[%emt 0:00:07]} 13. exd5 {[%emt 0:00:05]} (13. e5 Ne4 14. Nb3 Nc4 $11 {led to an interesting game with a sidelined White knight:} 15. Bxc4 dxc4 16. Na5 Bd7 17. Bd4 Rc8 18. Nxb7 Bc6 19. Na5 Bd5 $44 {Volokitin,A-Giri,A Germany 2014}) 13... exd5 {[%emt 0:01:03]} 14. Nb3 {[%emt 0:00:09]} Nc4 {[%emt 0:00:47]} 15. Bd4 {[%emt 0:00:02]} Ne4 {[%emt 0:04:13]} 16. Nc5 {[%emt 0:01:07]} Nxc5 {[%emt 0:25:42]} 17. Bxc5 {[%emt 0:00:05]} Bd7 {[%emt 0:00:25] The position is similar in essence to Mamedyarov-Carlsen from yesterday - the only difference being that Carlsen held nearly effortlessly there, but Matlakov is not able to do the same today.} 18. O-O-O {[%emt 0:02:34]} O-O-O {[%emt 0:01:38]} 19. Bxc4 {[%emt 0:00:53]} dxc4 {[%emt 0:00:24]} 20. Bb6 {[%emt 0:00:02]} Rde8 {[%emt 0:01:07]} 21. Rd4 {[%emt 0:00:11]} Re6 {[%emt 0:07:55] Dropping a healthy pawn by force.} (21... Bb5 $5 22. Rhd1 Kb8 {looks a bit passive, but avoids going in for hard-to-calculate forced lines. Black's idea is ...c8-c6.}) 22. Rxc4+ {[%emt 0:00:24]} Rc6 {[%emt 0:00:48]} (22... Kb8 23. Rd1 $5 Bb5 24. Rb4 Rxb6 25. c4 $14 {is unlikely to be much more pleasant, since Black now ends up with doubled pawns himself.}) 23. Rxc6+ {[%emt 0:00:44]} Bxc6 {[%emt 0:00:26]} 24. Rd1 {[%emt 0:00:25]} Bxg2 {[%emt 0:18:10]} 25. Rg1 {[%emt 0:00:14]} Be4 {[%emt 0:12:19]} 26. Rxg7 {[%emt 0:00:44]} Bg6 {[%emt 0:00:18]} 27. a4 {[%emt 0:12:05]} (27. f5 {immediately was also possible, and Black's drawing chances may not be as good as they immediately seem.}) 27... Rf8 $146 {[%emt 0:05:24]} ({RR} 27... Re8 28. f5 Bxf5 29. Rxf7 Bg6 30. Rc7+ Kb8 31. Rd7 Kc8 32. Rd4 Be4 33. a5 h5 34. h4 Bc6 35. Kb2 Rg8 36. Rd6 Re8 37. Rh6 Re5 38. Rd6 Rd5 39. Rh6 Kd7 40. c4 Rf5 41. Rh7+ Ke6 42. Kb3 {Srijit,P (2310)-Thilakarathne,G (2397) Delhi 2019 1-0 (85)}) 28. Kb2 {[%emt 0:04:57]} Kd7 {[%emt 0:02:12]} (28... h5 {could also have been played, since it is not clear, especially given the further course of the game, whether having the king out helps or hinders Black's drawing efforts.}) 29. f5 {[%emt 0:00:34]} Bxf5 {[%emt 0:00:17]} 30. Bc5 {[%emt 0:00:02]} Rc8 {[%emt 0:00:20]} 31. Rxf7+ {[%emt 0:00:07]} Ke6 {[%emt 0:00:06]} 32. Re7+ {[%emt 0:00:03]} Kf6 {[%emt 0:00:17]} 33. Bb4 $14 {[%emt 0:00:53] Now White has a healthy nibble, and he coaxes ...a5.} a5 {[%emt 0:09:19]} (33... b5 34. axb5 axb5 35. Rb7 Re8 36. Rxb5 Re2 $14 {was a marginally better version of the same thing.}) 34. Ba3 {[%emt 0:00:21]} Rc4 {[%emt 0:00:43]} 35. Rxb7 {[%emt 0:00:41]} Rxa4 {[%emt 0:00:12]} 36. Ra7 {[%emt 0:05:14]} Re4 {[%emt 0:09:40]} 37. Rxa5 {[%emt 0:00:11]} Re2 {[%emt 0:00:05]} 38. Bd6 {[%emt 0:00:05]} Bxc2 {[%emt 0:02:20]} 39. c4 $16 {[%emt 0:00:55] Eventually Carlsen had to be able to swap one of his doubled pawns for another pawn. The position is now completely thankless - the best Black can hope for is not even a straight draw, but to have to defend rook and bishop against rook!} Ke6 {[%emt 0:02:00]} 40. Ra6 {[%emt 0:00:00]} Bf5+ {[%emt 0:05:14]} 41. Kc3 {[%emt 0:01:48]} Be4 {[%emt 0:11:24]} 42. Kd4 {[%emt 0:06:19]} Kf5 {[%emt 0:02:03]} 43. Ra5+ {[%emt 0:00:29]} Kg4 {[%emt 0:03:26]} 44. c5 {[%emt 0:05:32]} Bf3 {[%emt 0:05:04]} 45. Ra7 {[%emt 0:01:20]} h6 {[%emt 0:04:19]} 46. Rh7 {[%emt 0:03:14]} Re4+ {[%emt 0:04:33]} 47. Kd3 {[%emt 0:01:05]} Re6 {[%emt 0:00:06]} 48. Kc4 {[%emt 0:00:11]} Bc6 {[%emt 0:02:48]} 49. Rc7 {[%emt 0:00:51]} Bh1 {[%emt 0:00:47]} 50. Kb5 {[%emt 0:01:16]} h5 {[%emt 0:02:17]} (50... Re1 $16 {keeps the game going a bit better.}) 51. Rg7+ {[%emt 0:01:38]} Kh4 $6 {[%emt 0:01:02] Walking into all kinds of mating motifs.} (51... Kf5 52. Rg1 Bf3 53. Rf1 {might have been a line Black was afraid of, but he survives by defending with the rook:} Re3 $16) 52. Rg1 {[%emt 0:16:52]} Ba8 {[%emt 0:01:23]} 53. Kb6 {[%emt 0:06:28]} Re2 {[%emt 0:01:29]} 54. Kc7 {[%emt 0:01:04]} Bd5 {[%emt 0:03:57]} 55. Rg3 {[%emt 0:03:30]} Bh1 {[%emt 0:00:35]} (55... Rxh2 56. Rd3 {is a nice small tactic.}) 56. Rc3 {[%emt 0:07:56]} Kg4 {[%emt 0:03:34]} 57. c6 {[%emt 0:01:07] So White has managed everything he needs to and he will win the bishop without the need for a h-pawn swap. In a game Sowray-Harvey, Bedford 2013, the weaker side continued even after the win of a similar piece, but ultimately even after some inspired resistance was unable to save half a point.} 1-0